[Event "ETCC Women 2013"]
[Site "Warsaw"]
[Date "2013.11.11"]
[Round "4"]
[White "Mammadova, Gulnar"]
[Black "Franciskovic, Borka"]
[Result "1/2-1/2"]
[ECO "B12"]
[WhiteElo "2354"]
[BlackElo "2263"]
[PlyCount "92"]
[EventDate "2013.??.??"]
[EventCountry "POL"]
[WhiteTeam "Aserbeidschan"]
[BlackTeam "Kroatien"]
[WhiteTeamCountry "AZE"]
[BlackTeamCountry "CRO"]
[TimeControl "40/5400+30:1800+30"]

1. e4 {[%emt 0:00:00]} c6 {[%emt 0:00:00]} 2. d4 {[%emt 0:00:00]} d5 {[%emt 0:
00:00]} 3. f3 {[%emt 0:00:08]} e6 {[%emt 0:00:05]} 4. Nc3 {[%emt 0:00:08]} Bb4
{[%emt 0:00:29]} 5. Bf4 {[%emt 0:00:38]} Ne7 {[%emt 0:00:56]} 6. Nge2 {[%emt 0:
02:42]} dxe4 {[%emt 0:06:00]} 7. fxe4 {[%emt 0:01:28]} Ng6 {[%emt 0:03:01]} 8.
Bg3 {[%emt 0:03:09]} e5 {[%emt 0:04:10]} 9. Qd3 {[%emt 0:06:34]} exd4 {[%emt 0:
05:50]} 10. Nxd4 {[%emt 0:00:22]} O-O {[%emt 0:01:02]} 11. O-O-O {[%emt 0:03:
57]} Qa5 {[%emt 0:10:20]} 12. Nb3 {[%emt 0:13:24]} Qg5+ {[%emt 0:08:00]} 13.
Rd2 {[%emt 0:11:38]} Nh4 {[%emt 0:15:07]} 14. Kb1 {[%emt 0:06:37]} Nd7 {[%emt
0:03:48]} 15. Qd4 {[%emt 0:03:43]} Be7 {[%emt 0:09:43]} 16. Qf2 {[%emt 0:02:05]
} Ne5 {[%emt 0:05:27]} 17. Bf4 {[%emt 0:13:12]} Qf6 {[%emt 0:01:53]} 18. g3 {
[%emt 0:02:44]} Nhg6 {[%emt 0:01:51]} 19. Be2 {[%emt 0:00:40]} Be6 {[%emt 0:04:
20]} 20. Rhd1 {[%emt 0:02:43]} Rfd8 {[%emt 0:03:17]} 21. Rxd8+ {[%emt 0:04:16]}
Bxd8 {[%emt 0:00:31]} 22. Na4 {[%emt 0:03:06]} b6 {[%emt 0:02:11]} 23. Nd4 {
[%emt 0:01:35]} Be7 {[%emt 0:01:20]} 24. Nxe6 {[%emt 0:00:51]} Qxe6 {[%emt 0:
00:37]} 25. Bc1 {[%emt 0:01:47]} Rd8 {[%emt 0:01:50]} 26. Qf5 {[%emt 0:00:21]}
Rxd1 {[%emt 0:01:02]} 27. Bxd1 {[%emt 0:00:02]} Nf8 {[%emt 0:02:15]} 28. Qxe6 {
[%emt 0:04:16]} Nxe6 {[%emt 0:00:10]} 29. b3 {[%emt 0:00:45]} f6 {[%emt 0:01:
59]} 30. c4 {[%emt 0:01:17]} Kf7 {[%emt 0:01:10]} 31. h4 {[%emt 0:01:19]} Bd6 {
[%emt 0:01:10]} 32. Be3 {[%emt 0:01:03]} g6 {[%emt 0:01:21]} 33. g4 {[%emt 0:
01:42]} Nd7 {[%emt 0:00:44]} 34. Kc2 {[%emt 0:01:23]} Ndc5 {[%emt 0:01:54]} 35.
Nc3 {[%emt 0:01:13]} Be5 {[%emt 0:00:43]} 36. Bf3 {[%emt 0:01:10]} Nd4+ {[%emt
0:00:44]} 37. Bxd4 {[%emt 0:00:05]} Bxd4 {[%emt 0:00:03]} 38. e5 {[%emt 0:01:
32]} Bxe5 {[%emt 0:01:03]} 39. Bxc6 {[%emt 0:00:05]} Ke7 {[%emt 0:00:59]} 40.
b4 {[%emt 0:00:00]} Ne6 {[%emt 0:00:00]} 41. Be4 {[%emt 0:07:16]} f5 {[%emt 0:
13:00]} 42. gxf5 {[%emt 0:00:47]} gxf5 {[%emt 0:00:05]} 43. Bd5 {[%emt 0:14:25]
} Nd4+ {[%emt 0:10:03]} 44. Kd3 {[%emt 0:00:41]} Kd6 {[%emt 0:01:00]} 45. Bb7 {
[%emt 0:05:45]} h6 {[%emt 0:01:55]} 46. h5 {[%emt 0:03:46]} Kc7 {[%emt 0:02:05]
} 1/2-1/2

[Event "ETCC Women 2013"]
[Site "Warsaw"]
[Date "2013.11.11"]
[Round "4"]
[White "Manakova, Maria"]
[Black "Arabidze, Meri"]
[Result "0-1"]
[ECO "E15"]
[WhiteElo "2324"]
[BlackElo "2374"]
[PlyCount "168"]
[EventDate "2013.??.??"]
[EventCountry "POL"]
[WhiteTeam "Serbien"]
[BlackTeam "Georgien"]
[WhiteTeamCountry "SRB"]
[BlackTeamCountry "GEO"]
[TimeControl "40/5400+30:1800+30"]

1. d4 {[%emt 0:00:00]} Nf6 {[%emt 0:00:00]} 2. c4 {[%emt 0:00:00]} e6 {[%emt 0:
00:00]} 3. Nf3 {[%emt 0:00:12]} b6 {[%emt 0:00:00]} 4. g3 {[%emt 0:00:42]} Ba6
{[%emt 0:00:57]} 5. b3 {[%emt 0:00:24]} Bb4+ {[%emt 0:00:54]} 6. Bd2 {[%emt 0:
00:28]} Be7 {[%emt 0:00:34]} 7. Nc3 {[%emt 0:05:23]} O-O {[%emt 0:02:42]} 8.
Bg2 {[%emt 0:07:42]} c6 {[%emt 0:01:59]} 9. O-O {[%emt 0:06:13]} d5 {[%emt 0:
03:45]} 10. cxd5 {[%emt 0:00:34]} cxd5 {[%emt 0:01:09]} 11. Ne5 {[%emt 0:00:18]
} Nfd7 {[%emt 0:04:39]} 12. Nxd7 {[%emt 0:14:49]} Nxd7 {[%emt 0:01:50]} 13. a4
{[%emt 0:01:23]} Bb7 {[%emt 0:08:44]} 14. a5 {[%emt 0:02:31]} bxa5 {[%emt 0:05:
03]} 15. e4 {[%emt 0:02:07]} dxe4 {[%emt 0:07:31]} 16. Nxe4 {[%emt 0:00:18]}
Bb4 {[%emt 0:01:06]} 17. Qe2 {[%emt 0:36:50]} Qb6 {[%emt 0:07:16]} 18. Rfc1 {
[%emt 0:02:15]} Rfc8 {[%emt 0:12:35]} 19. Qd3 {[%emt 0:06:10]} h6 {[%emt 0:06:
20]} 20. h3 {[%emt 0:00:20]} Bd5 {[%emt 0:04:55]} 21. Kh2 {[%emt 0:03:21]} Rxc1
{[%emt 0:09:28]} 22. Rxc1 {[%emt 0:00:34]} Ba3 {[%emt 0:00:30]} 23. Ra1 {[%emt
0:04:48]} Bb4 {[%emt 0:06:06]} 24. Bxb4 {[%emt 0:00:07]} Qxb4 {[%emt 0:02:02]}
25. Nd2 {[%emt 0:02:06]} Bxg2 {[%emt 0:05:10]} 26. Kxg2 {[%emt 0:00:03]} Rd8 {
[%emt 0:00:06]} 27. Ra4 {[%emt 0:00:41]} Nc5 {[%emt 0:01:25]} 28. Rxb4 {[%emt
0:00:09]} Nxd3 {[%emt 0:00:01]} 29. Rb7 {[%emt 0:02:41]} Rxd4 {[%emt 0:03:20]}
30. Nf3 {[%emt 0:00:09]} Rb4 {[%emt 0:00:46]} 31. Rxa7 {[%emt 0:00:08]} Rxb3 {
[%emt 0:00:16]} 32. Rxa5 {[%emt 0:00:25]} Rb2 {[%emt 0:00:11]} 33. Ne5 {[%emt
0:00:23]} Nxf2 {[%emt 0:04:03]} 34. Ra8+ {[%emt 0:00:07]} Kh7 {[%emt 0:00:01]}
35. Nxf7 {[%emt 0:00:01]} Ng4+ {[%emt 0:01:30]} 36. Kf3 {[%emt 0:02:10]} Nh2+ {
[%emt 0:00:32]} 37. Ke4 {[%emt 0:01:06]} Re2+ {[%emt 0:00:12]} 38. Kd4 {[%emt
0:00:42]} Nf3+ {[%emt 0:00:28]} 39. Kd3 {[%emt 0:00:18]} Re1 {[%emt 0:00:23]}
40. Nd6 {[%emt 0:00:00]} Ng1 {[%emt 0:00:00]} 41. Ne8 {[%emt 0:07:09]} Rf1 {
[%emt 0:19:24]} 42. g4 {[%emt 0:05:16]} Rf8 {[%emt 0:02:50]} 43. h4 {[%emt 0:
01:50]} Nf3 {[%emt 0:00:42]} 44. Ke4 {[%emt 0:01:22]} Kg8 {[%emt 0:07:52]} 45.
h5 {[%emt 0:05:37]} Nh2 {[%emt 0:00:03]} 46. Ke5 {[%emt 0:01:01]} Nxg4+ {[%emt
0:00:02]} 47. Kxe6 {[%emt 0:00:11]} Kh7 {[%emt 0:01:08]} 48. Rc8 {[%emt 0:04:
07]} Ne3 {[%emt 0:00:53]} 49. Ke5 {[%emt 0:02:24]} Ng2 {[%emt 0:00:59]} 50. Nd6
{[%emt 0:01:36]} Rxc8 {[%emt 0:01:00]} 51. Nxc8 {[%emt 0:00:02]} Ne3 {[%emt 0:
00:08]} 52. Kf4 {[%emt 0:00:37]} Nd5+ {[%emt 0:01:14]} 53. Kg3 {[%emt 0:00:19]}
Nf6 {[%emt 0:00:07]} 54. Kh4 {[%emt 0:00:03]} Kg8 {[%emt 0:00:05]} 55. Ne7+ {
[%emt 0:01:39]} Kf7 {[%emt 0:00:05]} 56. Ng6 {[%emt 0:00:17]} Nd5 {[%emt 0:01:
25]} 57. Ne5+ {[%emt 0:00:43]} Kf6 {[%emt 0:00:20]} 58. Ng6 {[%emt 0:01:08]}
Kf5 {[%emt 0:00:05]} 59. Nf8 {[%emt 0:01:10]} Ne7 {[%emt 0:00:13]} 60. Nd7 {
[%emt 0:00:31]} Kf4 {[%emt 0:00:32]} 61. Nf8 {[%emt 0:02:40]} Nf5+ {[%emt 0:00:
28]} 62. Kh3 {[%emt 0:00:01]} Kg5 {[%emt 0:00:14]} 63. Ne6+ {[%emt 0:00:11]}
Kxh5 {[%emt 0:00:15]} 64. Nf4+ {[%emt 0:00:26]} Kg5 {[%emt 0:00:02]} 65. Ne6+ {
[%emt 0:00:14]} Kf6 {[%emt 0:00:06]} 66. Nf4 {[%emt 0:00:06]} g5 {[%emt 0:00:
41]} 67. Nd3 {[%emt 0:00:19]} h5 {[%emt 0:00:32]} 68. Nf2 {[%emt 0:00:03]} Ke5
{[%emt 0:00:41]} 69. Nd3+ {[%emt 0:00:22]} Ke4 {[%emt 0:00:51]} 70. Nc5+ {
[%emt 0:00:15]} Kf3 {[%emt 0:00:42]} 71. Ne6 {[%emt 0:00:14]} g4+ {[%emt 0:00:
02]} 72. Kh2 {[%emt 0:00:02]} h4 {[%emt 0:01:11]} 73. Ng5+ {[%emt 0:00:55]} Kf2
{[%emt 0:01:07]} 74. Kh1 {[%emt 0:02:16]} Ng3+ {[%emt 0:00:07]} 75. Kh2 {[%emt
0:00:04]} Nf5 {[%emt 0:00:02]} 76. Kh1 {[%emt 0:00:03]} Kg3 {[%emt 0:00:55]}
77. Ne4+ {[%emt 0:00:11]} Kf4 {[%emt 0:00:08]} 78. Nf6 {[%emt 0:01:31]} Ne3 {
[%emt 0:00:37]} 79. Kh2 {[%emt 0:00:59]} Nf1+ {[%emt 0:00:02]} 80. Kg2 {[%emt
0:00:44]} Ne3+ {[%emt 0:00:02]} 81. Kh2 {[%emt 0:00:17]} Kf3 {[%emt 0:00:15]}
82. Nh5 {[%emt 0:01:36]} g3+ {[%emt 0:01:20]} 83. Kg1 {[%emt 0:00:17]} h3 {
[%emt 0:00:16]} 84. Kh1 {[%emt 0:00:28]} Ng4 {[%emt 0:00:35]} 0-1

[Event "ETCC Women 2013"]
[Site "Warsaw"]
[Date "2013.11.11"]
[Round "4"]
[White "Matnadze, Ana"]
[Black "Bartel, Marta"]
[Result "1/2-1/2"]
[ECO "A10"]
[WhiteElo "2373"]
[BlackElo "2308"]
[PlyCount "107"]
[EventDate "2013.??.??"]
[EventCountry "POL"]
[WhiteTeam "Spanien"]
[BlackTeam "Polen"]
[WhiteTeamCountry "ESP"]
[BlackTeamCountry "POL"]
[TimeControl "40/5400+30:1800+30"]

1. c4 f5 2. g3 Nf6 3. Bg2 g6 4. d4 Bg7 5. Nc3 O-O 6. e4 fxe4 7. Nxe4 Nxe4 8.
Bxe4 c6 9. Ne2 d5 10. cxd5 cxd5 11. Bg2 Nc6 12. O-O Bg4 13. f3 Bf5 14. g4 Be6
15. Be3 Qb6 16. Qd2 Rac8 17. Rac1 Qa5 18. Qxa5 Nxa5 19. b3 Bd7 20. Rfd1 e6 21.
f4 Nc6 22. h4 Nb4 23. Nc3 Rc7 24. Bf2 Rfc8 25. Be1 Bb5 26. Bf1 Bxf1 27. Kxf1
Bh6 28. a3 Nc6 29. Ne2 Bf8 30. b4 Bd6 31. Rc3 Nb8 32. Re3 Kf7 33. Nc3 a6 34. f5
gxf5 35. gxf5 exf5 36. Rf3 Ke6 37. Rd2 f4 38. Re2+ Kf5 39. Nxd5 Rc1 40. Ne7+
Bxe7 41. Rxe7 R8c7 42. Rxc7 Rxc7 43. Bd2 Ke4 44. Rxf4+ Kd3 45. Be1 Rd7 46. Bf2
Kc4 47. Kg2 Nc6 48. Kg3 Kb3 49. Rf3+ Ka4 50. Rd3 Ne5 51. Rc3 Nc6 52. Rd3 Ne5
53. Rc3 Nc6 54. Rd3 1/2-1/2

[Event "ETCC Women 2013"]
[Site "Warsaw"]
[Date "2013.11.11"]
[Round "4"]
[White "Michna, Marta"]
[Black "Batkovskyte, Dominyka"]
[Result "1-0"]
[ECO "A04"]
[WhiteElo "2357"]
[BlackElo "2111"]
[PlyCount "169"]
[EventDate "2013.??.??"]
[EventCountry "POL"]
[WhiteTeam "Deutschland"]
[BlackTeam "Litauen"]
[WhiteTeamCountry "GER"]
[BlackTeamCountry "LTU"]
[TimeControl "40/5400+30:1800+30"]

1. Nf3 {[%emt 0:00:00]} g6 {[%emt 0:00:00]} 2. e4 {[%emt 0:04:16]} c5 {[%emt 0:
00:24]} 3. d3 {[%emt 0:06:14]} Bg7 {[%emt 0:01:47]} 4. c3 {[%emt 0:02:55]} Nc6
{[%emt 0:05:55]} 5. Be3 {[%emt 0:03:05]} d6 {[%emt 0:02:31]} 6. Be2 {[%emt 0:
05:46]} e5 {[%emt 0:07:08]} 7. O-O {[%emt 0:02:17]} Nge7 {[%emt 0:00:31]} 8.
Qd2 {[%emt 0:11:11]} h6 {[%emt 0:02:56]} 9. d4 {[%emt 0:12:18]} exd4 {[%emt 0:
29:17]} 10. cxd4 {[%emt 0:00:05]} cxd4 {[%emt 0:00:39]} 11. Nxd4 {[%emt 0:00:
10]} d5 {[%emt 0:00:49]} 12. Nxc6 {[%emt 0:03:56]} bxc6 {[%emt 0:01:13]} 13.
Bd4 {[%emt 0:00:38]} O-O {[%emt 0:02:09]} 14. Bxg7 {[%emt 0:04:32]} Kxg7 {
[%emt 0:00:05]} 15. Rd1 {[%emt 0:02:45]} Qb6 {[%emt 0:05:04]} 16. Nc3 {[%emt 0:
02:49]} Rb8 {[%emt 0:04:07]} 17. b3 {[%emt 0:04:17]} Be6 {[%emt 0:06:00]} 18.
Na4 {[%emt 0:06:08]} Qb4 {[%emt 0:00:32]} 19. Qxb4 {[%emt 0:01:37]} Rxb4 {
[%emt 0:01:46]} 20. Nc5 {[%emt 0:00:05]} Rd8 {[%emt 0:06:26]} 21. Rac1 {[%emt
0:00:28]} Rbb8 {[%emt 0:04:44]} 22. Rd4 {[%emt 0:00:53]} Kf6 {[%emt 0:06:47]}
23. Ra4 {[%emt 0:01:28]} Ra8 {[%emt 0:01:30]} 24. h3 {[%emt 0:03:58]} dxe4 {
[%emt 0:03:20]} 25. Nxe6 {[%emt 0:01:10]} fxe6 {[%emt 0:01:01]} 26. Rxe4 {
[%emt 0:00:28]} Rd2 {[%emt 0:00:36]} 27. Bg4 {[%emt 0:03:27]} e5 {[%emt 0:02:
08]} 28. Rce1 {[%emt 0:01:08]} Rd5 {[%emt 0:03:04]} 29. f4 {[%emt 0:00:15]} Nf5
{[%emt 0:00:18]} 30. fxe5+ {[%emt 0:01:23]} Ke6 {[%emt 0:00:28]} 31. Rc4 {
[%emt 0:05:35]} Rc8 {[%emt 0:00:27]} 32. Rec1 {[%emt 0:00:40]} Kxe5 {[%emt 0:
00:58]} 33. Rxc6 {[%emt 0:01:04]} Rxc6 {[%emt 0:00:04]} 34. Rxc6 {[%emt 0:00:
04]} Rd6 {[%emt 0:00:44]} 35. Rc5+ {[%emt 0:00:58]} Kf4 {[%emt 0:00:42]} 36.
Bxf5 {[%emt 0:00:47]} gxf5 {[%emt 0:00:02]} 37. Kh2 {[%emt 0:00:10]} a6 {[%emt
0:00:35]} 38. Ra5 {[%emt 0:00:34]} Rc6 {[%emt 0:01:28]} 39. a3 {[%emt 0:05:19]}
Rd6 {[%emt 0:00:36]} 40. b4 {[%emt 0:00:00]} Rc6 {[%emt 0:00:00]} 41. a4 {
[%emt 0:04:32]} Rd6 {[%emt 0:08:40]} 42. b5 {[%emt 0:05:08]} axb5 {[%emt 0:00:
18]} 43. axb5 {[%emt 0:01:56]} Rd4 {[%emt 0:00:40]} 44. Ra6 {[%emt 0:00:22]} h5
{[%emt 0:02:09]} 45. Rb6 {[%emt 0:03:34]} Rb4 {[%emt 0:00:54]} 46. Rb8 {[%emt
0:00:12]} h4 {[%emt 0:03:48]} 47. b6 {[%emt 0:00:26]} Rb2 {[%emt 0:00:48]} 48.
b7 {[%emt 0:00:46]} Rb1 {[%emt 0:00:35]} 49. Rh8 {[%emt 0:00:17]} Rxb7 {[%emt
0:00:06]} 50. Rxh4+ {[%emt 0:00:03]} Kg5 {[%emt 0:00:24]} 51. Rh8 {[%emt 0:00:
06]} Rb3 {[%emt 0:03:12]} 52. Rg8+ {[%emt 0:00:16]} Kh5 {[%emt 0:00:35]} 53.
Kg1 {[%emt 0:02:55]} Rb2 {[%emt 0:00:24]} 54. g3 {[%emt 0:07:31]} f4 {[%emt 0:
11:28]} 55. gxf4 {[%emt 0:00:12]} Ra2 {[%emt 0:00:46]} 56. Rg4 {[%emt 0:06:38]}
Rb2 {[%emt 0:01:07]} 57. Rg2 {[%emt 0:02:46]} Rb4 {[%emt 0:01:17]} 58. Rf2 {
[%emt 0:01:04]} Kg6 {[%emt 0:00:44]} 59. Kg2 {[%emt 0:00:16]} Kf5 {[%emt 0:00:
52]} 60. Kg3 {[%emt 0:00:04]} Rb3+ {[%emt 0:01:21]} 61. Rf3 {[%emt 0:00:46]}
Rb4 {[%emt 0:00:47]} 62. Ra3 {[%emt 0:00:35]} Rb5 {[%emt 0:00:31]} 63. h4 {
[%emt 0:01:18]} Rc5 {[%emt 0:00:30]} 64. h5 {[%emt 0:00:25]} Rb5 {[%emt 0:00:
35]} 65. Rc3 {[%emt 0:02:39]} Ra5 {[%emt 0:00:28]} 66. Re3 {[%emt 0:00:34]} Rb5
{[%emt 0:00:24]} 67. Ra3 {[%emt 0:00:14]} Rc5 {[%emt 0:00:09]} 68. Ra8 {[%emt
0:01:33]} Rc3+ {[%emt 0:00:53]} 69. Kh4 {[%emt 0:00:03]} Kf6 {[%emt 0:00:40]}
70. Kg4 {[%emt 0:00:19]} Rc1 {[%emt 0:00:26]} 71. Ra6+ {[%emt 0:00:25]} Kf7 {
[%emt 0:00:30]} 72. h6 {[%emt 0:01:22]} Rc5 {[%emt 0:00:24]} 73. h7 {[%emt 0:
01:15]} Kg7 {[%emt 0:00:37]} 74. Rh6 {[%emt 0:00:23]} Kh8 {[%emt 0:00:32]} 75.
f5 {[%emt 0:00:58]} Rc1 {[%emt 0:00:25]} 76. Kg5 {[%emt 0:00:17]} Rg1+ {[%emt
0:00:17]} 77. Kf6 {[%emt 0:00:04]} Ra1 {[%emt 0:00:42]} 78. Rh2 {[%emt 0:00:15]
} Ra6+ {[%emt 0:00:32]} 79. Kg5 {[%emt 0:00:05]} Rb6 {[%emt 0:00:30]} 80. Rh1 {
[%emt 0:01:02]} Ra6 81. Re1 {[%emt 0:01:12]} Kxh7 {[%emt 0:00:54]} 82. Re6 {
[%emt 0:00:06]} Rxe6 {[%emt 0:00:13]} 83. fxe6 {[%emt 0:00:04]} Kg7 {[%emt 0:
00:12]} 84. Kf5 {[%emt 0:00:04]} Kg8 {[%emt 0:00:18]} 85. Ke4 1-0

[Event "ETCC Women 2013"]
[Site "Warsaw"]
[Date "2013.11.11"]
[Round "4"]
[White "Milliet, Sophie"]
[Black "L'Ami, Alina"]
[Result "1/2-1/2"]
[ECO "C18"]
[WhiteElo "2383"]
[BlackElo "2361"]
[PlyCount "64"]
[EventDate "2013.??.??"]
[EventCountry "POL"]
[WhiteTeam "Frankreich"]
[BlackTeam "Rumänien"]
[WhiteTeamCountry "FRA"]
[BlackTeamCountry "ROU"]
[TimeControl "40/5400+30:1800+30"]

1. e4 {[%emt 0:00:00]} e6 {[%emt 0:00:00]} 2. d4 {[%emt 0:00:00]} d5 {[%emt 0:
00:00]} 3. Nc3 {[%emt 0:00:00]} Bb4 {[%emt 0:00:00]} 4. e5 {[%emt 0:00:17]} c5
{[%emt 0:00:08]} 5. a3 {[%emt 0:00:04]} Bxc3+ {[%emt 0:00:06]} 6. bxc3 {[%emt
0:00:05]} Ne7 {[%emt 0:00:10]} 7. Qg4 {[%emt 0:00:26]} Qc7 {[%emt 0:00:18]} 8.
Qxg7 {[%emt 0:00:54]} Rg8 {[%emt 0:00:05]} 9. Qxh7 {[%emt 0:00:03]} cxd4 {
[%emt 0:00:37]} 10. Ne2 {[%emt 0:00:09]} Nbc6 {[%emt 0:00:58]} 11. f4 {[%emt 0:
00:59]} dxc3 {[%emt 0:00:07]} 12. h4 {[%emt 0:00:58]} d4 {[%emt 0:01:07]} 13.
h5 {[%emt 0:00:53]} b6 {[%emt 0:09:53]} 14. Qd3 {[%emt 0:06:51]} Bb7 {[%emt 0:
10:49]} 15. Nxd4 {[%emt 0:25:49]} Nxd4 {[%emt 0:06:56]} 16. Qxd4 {[%emt 0:00:
04]} Rd8 {[%emt 0:07:09]} 17. Qa4+ {[%emt 0:02:09]} Kf8 {[%emt 0:18:04]} 18. h6
{[%emt 0:07:29]} Bxg2 {[%emt 0:05:56]} 19. Bxg2 {[%emt 0:09:15]} Rxg2 {[%emt 0:
00:02]} 20. Qe4 {[%emt 0:02:52]} Qc6 {[%emt 0:13:23]} 21. Qxc6 {[%emt 0:00:47]}
Nxc6 {[%emt 0:00:02]} 22. Be3 {[%emt 0:13:05]} Kg8 {[%emt 0:03:39]} 23. Kf1 {
[%emt 0:25:14]} Rg6 {[%emt 0:07:51]} 24. Ke2 {[%emt 0:01:45]} Kh7 {[%emt 0:01:
02]} 25. Rad1 {[%emt 0:00:30]} Rg2+ {[%emt 0:03:10]} 26. Kf3 {[%emt 0:01:42]}
Rdg8 {[%emt 0:04:51]} 27. Rd7 {[%emt 0:00:28]} R8g3+ {[%emt 0:00:27]} 28. Ke4 {
[%emt 0:00:01]} Re2 {[%emt 0:01:22]} 29. Rxf7+ {[%emt 0:00:01]} Kh8 {[%emt 0:
00:26]} 30. Rf8+ {[%emt 0:00:03]} Kh7 {[%emt 0:00:08]} 31. Rf7+ {[%emt 0:00:01]
} Kh8 {[%emt 0:00:14]} 32. Rf8+ {[%emt 0:00:29]} Kh7 {[%emt 0:00:05]} 1/2-1/2

[Event "ETCC Women 2013"]
[Site "Warsaw"]
[Date "2013.11.11"]
[Round "4"]
[White "Mkrtchian, Lilit"]
[Black "Majdan-Gajewska, Joanna"]
[Result "1-0"]
[ECO "A06"]
[WhiteElo "2447"]
[BlackElo "2420"]
[PlyCount "99"]
[EventDate "2013.??.??"]
[EventCountry "POL"]
[WhiteTeam "Armenien"]
[BlackTeam "Polen"]
[WhiteTeamCountry "ARM"]
[BlackTeamCountry "POL"]
[TimeControl "40/5400+30:1800+30"]

1. Nf3 {[%emt 0:00:00]} d5 {[%emt 0:00:00]} 2. c4 {[%emt 0:00:16]} c6 {[%emt 0:
00:10]} 3. e3 {[%emt 0:00:27]} Nf6 {[%emt 0:00:32]} 4. d4 {[%emt 0:00:15]} g6 {
[%emt 0:00:47]} 5. Nc3 {[%emt 0:01:04]} Bg7 {[%emt 0:00:05]} 6. Be2 {[%emt 0:
00:17]} O-O {[%emt 0:00:08]} 7. O-O {[%emt 0:00:08]} a6 {[%emt 0:00:04]} 8. a4
{[%emt 0:04:25]} a5 {[%emt 0:00:20]} 9. Qb3 {[%emt 0:00:38]} e6 {[%emt 0:01:56]
} 10. Rd1 {[%emt 0:01:06]} b6 {[%emt 0:10:28]} 11. Bd2 {[%emt 0:06:24]} Ba6 {
[%emt 0:07:04]} 12. Be1 {[%emt 0:06:13]} Re8 {[%emt 0:07:39]} 13. Rac1 {[%emt
0:01:06]} Nbd7 {[%emt 0:07:31]} 14. cxd5 {[%emt 0:26:33]} exd5 {[%emt 0:03:27]}
15. Bxa6 {[%emt 0:00:20]} Rxa6 {[%emt 0:00:04]} 16. Ne2 {[%emt 0:00:07]} Qa8 {
[%emt 0:04:33]} 17. Nf4 {[%emt 0:02:14]} Ne4 {[%emt 0:11:36]} 18. Qc2 {[%emt 0:
01:50]} Nb8 {[%emt 0:00:24]} 19. Nd3 {[%emt 0:06:34]} Ra7 {[%emt 0:03:20]} 20.
Qb3 {[%emt 0:01:54]} Qb7 {[%emt 0:06:10]} 21. h3 {[%emt 0:09:30]} f6 {[%emt 0:
04:17]} 22. Nf4 {[%emt 0:01:42]} Bf8 {[%emt 0:00:38]} 23. Rc2 {[%emt 0:03:18]}
Kg7 {[%emt 0:02:40]} 24. Rdc1 {[%emt 0:00:47]} Bd6 {[%emt 0:00:42]} 25. Nd2 {
[%emt 0:01:38]} Bxf4 {[%emt 0:06:12]} 26. exf4 {[%emt 0:00:25]} Nd6 {[%emt 0:
00:05]} 27. Nf3 {[%emt 0:03:57]} Qa6 {[%emt 0:05:36]} 28. Rxc6 {[%emt 0:06:18]}
Nc4 {[%emt 0:03:17]} 29. R6xc4 {[%emt 0:00:37]} dxc4 {[%emt 0:00:04]} 30. Rxc4
{[%emt 0:00:08]} Rae7 {[%emt 0:00:23]} 31. Rc1 {[%emt 0:00:56]} Nd7 {[%emt 0:
00:59]} 32. Bd2 {[%emt 0:01:34]} Qa8 {[%emt 0:04:58]} 33. d5 {[%emt 0:02:54]}
Qb8 {[%emt 0:05:04]} 34. Rc6 {[%emt 0:01:43]} Nc5 {[%emt 0:00:57]} 35. Qxb6 {
[%emt 0:03:26]} Qxb6 {[%emt 0:00:41]} 36. Rxb6 {[%emt 0:00:04]} Rd7 {[%emt 0:
00:54]} 37. b3 {[%emt 0:04:33]} Rxd5 {[%emt 0:01:32]} 38. Rb5 {[%emt 0:00:08]}
Red8 {[%emt 0:01:10]} 39. Bxa5 {[%emt 0:00:07]} Rd1+ {[%emt 0:00:09]} 40. Kh2 {
[%emt 0:00:00]} Rc8 {[%emt 0:00:00]} 41. Nd2 {[%emt 0:14:57]} Ne6 {[%emt 0:04:
59]} 42. Rb7+ {[%emt 0:02:09]} Kh6 {[%emt 0:06:33]} 43. Ne4 {[%emt 0:01:26]}
Nxf4 {[%emt 0:01:35]} 44. Nxf6 {[%emt 0:01:12]} Rcc1 {[%emt 0:03:53]} 45. Ng4+
{[%emt 0:08:47]} Kh5 {[%emt 0:00:42]} 46. Rxh7+ {[%emt 0:00:40]} Kg5 {[%emt 0:
00:07]} 47. Re7 {[%emt 0:00:16]} Kh5 {[%emt 0:03:40]} 48. Nf6+ {[%emt 0:03:35]}
Kg5 {[%emt 0:02:16]} 49. Ne4+ {[%emt 0:00:11]} Kf5 {[%emt 0:00:16]} 50. g4# {
[%emt 0:00:10]} 1-0

[Event "ETCC Women 2013"]
[Site "Warsaw"]
[Date "2013.11.11"]
[Round "4"]
[White "Moser, Eva"]
[Black "Stefanova, Antoaneta"]
[Result "1-0"]
[ECO "A06"]
[WhiteElo "2434"]
[BlackElo "2494"]
[PlyCount "67"]
[EventDate "2013.??.??"]
[EventCountry "POL"]
[WhiteTeam "Österreich"]
[BlackTeam "Bulgarien"]
[WhiteTeamCountry "AUT"]
[BlackTeamCountry "BUL"]
[TimeControl "40/5400+30:1800+30"]

1. Nf3 {[%emt 0:00:00]} d5 {[%emt 0:00:00]} 2. g3 {[%emt 0:00:00]} c6 {[%emt 0:
00:26]} 3. Bg2 {[%emt 0:00:00]} Bf5 {[%emt 0:00:27]} 4. O-O {[%emt 0:00:04]} e6
{[%emt 0:00:35]} 5. d3 {[%emt 0:03:32]} h6 {[%emt 0:01:53]} 6. Nfd2 {[%emt 0:
03:31]} Bc5 {[%emt 0:06:01]} 7. e4 {[%emt 0:01:48]} Bg6 {[%emt 0:01:25]} 8. Kh1
{[%emt 0:04:51]} h5 {[%emt 0:15:59]} 9. f4 {[%emt 0:10:39]} Nf6 {[%emt 0:20:59]
} 10. Nb3 {[%emt 0:15:38]} Bb6 {[%emt 0:00:26]} 11. f5 {[%emt 0:01:39]} exf5 {
[%emt 0:01:28]} 12. exf5 {[%emt 0:00:21]} Bh7 {[%emt 0:00:04]} 13. Bg5 {[%emt
0:08:16]} Nbd7 {[%emt 0:00:17]} 14. Re1+ {[%emt 0:06:20]} Kf8 {[%emt 0:00:05]}
15. Qf3 {[%emt 0:00:17]} Qc8 {[%emt 0:06:14]} 16. Nc3 {[%emt 0:03:10]} Ng4 {
[%emt 0:02:58]} 17. Be7+ {[%emt 0:18:02]} Kg8 {[%emt 0:00:50]} 18. d4 {[%emt 0:
00:11]} Ndf6 {[%emt 0:05:24]} 19. Rf1 {[%emt 0:04:50]} Qd7 {[%emt 0:03:35]} 20.
Bxf6 {[%emt 0:00:05]} Nxf6 {[%emt 0:00:13]} 21. Na4 {[%emt 0:03:15]} Re8 {
[%emt 0:02:47]} 22. Nac5 {[%emt 0:00:35]} Qc8 {[%emt 0:02:58]} 23. Bh3 {[%emt
0:03:55]} Bxc5 {[%emt 0:04:23]} 24. Nxc5 {[%emt 0:01:07]} b6 {[%emt 0:00:05]}
25. Nd3 {[%emt 0:00:38]} Re4 {[%emt 0:02:18]} 26. c3 {[%emt 0:04:29]} Ng4 {
[%emt 0:01:28]} 27. Rae1 {[%emt 0:00:11]} Qe8 {[%emt 0:02:52]} 28. Bxg4 {[%emt
0:02:47]} hxg4 {[%emt 0:00:36]} 29. Qxg4 {[%emt 0:00:02]} f6 {[%emt 0:02:08]}
30. Rxe4 {[%emt 0:01:12]} dxe4 {[%emt 0:03:53]} 31. Nf4 {[%emt 0:00:52]} e3 {
[%emt 0:00:29]} 32. Ne6 {[%emt 0:00:18]} g5 {[%emt 0:02:59]} 33. fxg6 {[%emt 0:
01:22]} Qxg6 {[%emt 0:00:08]} 34. Rxf6 {[%emt 0:00:42]} 1-0